bitfinex/quotes_SOLUSD_20250831
["timestamp","ask_amount","ask_price","bid_price","bid_amount"]
[1756628381345,0.06,204.57,204.56,49.94286374]
[1756628382146,0.06,204.57,204.56,171.94286374]
[1756628382954,1e-08,204.57,204.56,185.53845775]
[1756628383253,1e-08,204.57,204.56,188.65100276]
[1756628383756,1e-08,204.57,204.56,175.09540875]
[1756628384448,0.06,204.59,204.58,43.4808125]
[1756628384618,0.06,204.59,204.58,85.11335751]
[1756628384822,0.06,204.59,204.58,85.82335751]
[1756628385022,0.06,204.59,204.58,92.66994885]
[1756628387249,1e-08,204.6,204.59,13.59559401]
[1756628387433,1e-08,204.6,204.59,21.30335751]
[1756628387946,1e-08,204.6,204.59,25.188576]
[1756628388128,1e-08,204.6,204.59,147.188576]
[1756628388449,1e-08,204.6,204.59,154.03287109]
[1756628389949,1e-08,204.6,204.59,150.1476526]
[1756628390436,1e-08,204.6,204.59,188.7276526]
[1756628391327,1e-08,204.6,204.59,192.61287109]
[1756628391745,0.1,204.67,204.66,29.88521849]
[1756628391952,0.1,204.67,204.66,68.44521849]
[1756628392128,1e-08,204.67,204.66,81.97113469]
[1756628392328,1e-08,204.67,204.66,89.96316469]
[1756628392529,1e-08,204.67,204.66,93.84838318]
[1756628393157,1e-08,204.67,204.66,89.96316469]
[1756628393357,1e-08,204.67,204.66,60.17453582]
[1756628393657,1e-08,204.67,204.66,98.87453582]
[1756628394058,1e-08,204.67,204.66,60.17453582]
[1756628394454,1e-08,204.67,204.66,98.87453582]
[1756628395365,1e-08,204.67,204.66,220.87453582]
[1756628396455,1e-08,204.67,204.66,220.85453582]
[1756628396650,1e-08,204.67,204.66,182.17453582]
[1756628396856,1e-08,204.67,204.66,220.85453582]
[1756628397151,0.06,204.7,204.66,176.90910492]
[1756628397152,1e-08,204.7,204.66,176.90910492]
[1756628397457,0.67000001,204.7,204.69,29.88521849]
[1756628397652,0.67000001,204.7,204.69,34.770655]
[1756628397957,0.67000001,204.7,204.67,14.683929]
[1756628398136,0.67,204.69,204.68,38.8]
[1756628398344,0.67,204.69,204.68,53.483929]
[1756628399250,0.67,204.69,204.68,38.8]
[1756628399434,0.67,204.69,204.68,43.684544]
[1756628400256,0.67,204.69,204.68,38.8]
[1756628400453,4.55521849,204.69,204.68,38.8]
[1756628401551,0.67,204.69,204.68,38.8]
[1756628401761,0.67,204.69,204.68,43.664996]
[1756628402150,0.67,204.69,204.68,38.78]
[1756628402665,0.67,204.69,204.68,43.664524]
[1756628402844,9.440655,204.69,204.63,3.88521849]
[1756628403161,4.58521849,204.68,204.64,43.664837]
[1756628403463,4.58521849,204.67,204.65,38.76]
[1756628403666,0.7,204.66,204.65,38.76]
[1756628404669,4.58521849,204.66,204.65,38.76]
[1756628404869,4.58521849,204.66,204.63,4.885721]
[1756628405059,0.7,204.65,204.63,4.885721]
[1756628405370,4.58521849,204.65,204.64,38.74]
[1756628405574,0.7,204.65,204.64,38.74]
[1756628406563,0.7,204.65,204.62,4.885722]
[1756628406766,0.7,204.64,204.63,38.72]
[1756628413466,0.7,204.64,204.63,43.605488]
[1756628414362,0.7,204.64,204.63,43.635488]
[1756628414662,0.7,204.64,204.63,38.75]
[1756628414869,3.88521849,204.67,204.63,43.53684589]
[1756628415077,0.7,204.64,204.63,43.53684589]
[1756628418565,1e-08,204.7,204.63,47.42206438]
[1756628418566,0.7,204.66,204.63,47.42206438]
[1756628418746,0.7,204.65,204.63,47.42206438]
[1756628418945,3.88521849,204.67,204.63,43.53684589]
[1756628419167,0.7,204.65,204.63,43.53684589]
[1756628424854,0.7,204.65,204.63,38.65]
[1756628427665,1e-08,204.7,204.64,3.88521849]
[1756628427852,1e-08,204.7,204.66,3.88521849]
[1756628428054,0.7,204.69,204.65,8.77096049]
[1756628428282,0.7,204.68,204.66,38.48]
[1756628428578,0.70000001,204.7,204.66,43.05521849]
[1756628428953,0.70000001,204.7,204.66,42.36521849]
[1756628429152,1e-08,204.7,204.67,0.69]
[1756628429474,1e-08,204.7,204.68,38.48]
[1756628429667,0.70000001,204.7,204.68,38.48]
[1756628429975,1e-08,204.7,204.68,38.48]
[1756628430472,0.70000001,204.7,204.68,38.48]
[1756628433377,0.66000001,204.7,204.68,38.48]
[1756628433556,1e-08,204.7,204.68,38.48]
[1756628433763,1e-08,204.7,204.66,10.48070571]
[1756628434068,1e-08,204.7,204.67,39.13]
[1756628435352,1e-08,204.7,204.68,0.71]
[1756628436771,1e-08,204.7,204.69,42.99521849]
[1756628436959,1e-08,204.7,204.69,51.10909711]
[1756628437356,1e-08,204.7,204.69,55.99453362]
[1756628437782,1e-08,204.7,204.69,52.10931513]
[1756628438084,1e-08,204.7,204.69,55.99453362]
[1756628438289,1e-08,204.7,204.69,177.99453362]
[1756628440679,1e-08,204.7,204.69,191.59012763]
[1756628441271,1e-08,204.7,204.69,66.42082101]
[1756628441471,1e-08,204.7,204.69,69.58829816]
[1756628442573,0.66,204.82,204.73,4.884482]
[1756628442881,0.66,204.82,204.79,3.88521849]
[1756628443077,3.88521849,204.84,204.73,5.594482]
[1756628443078,4.54521849,204.81,204.73,5.594482]
[1756628443395,3.88521849,204.79,204.74,56.28516072]
[1756628443674,0.66,204.78,204.74,57.00699149]
[1756628443878,0.66,204.77,204.74,43.03521849]
[1756628444088,0.66,204.8,204.76,3.88521849]
[1756628444266,26.0,204.82,204.78,3.88521849]
[1756628444458,0.66,204.81,204.78,3.88521849]
[1756628444658,0.66,204.81,204.79,4.88305093]
[1756628444858,0.66,204.83,204.8,3.88521849]
[1756628445057,4.10681085,204.88,204.8,38.44]
[1756628445058,3.88521849,204.88,204.8,38.44]
[1756628445264,0.66,204.87,204.82,3.88521849]
[1756628445482,3.88521849,204.88,204.82,39.15]
[1756628445483,0.66,204.86,204.82,39.15]
[1756628445665,0.66,204.85,204.82,42.32521849]
[1756628445870,0.66,204.85,204.82,55.92081249]
[1756628446786,0.66,204.85,204.83,4.88209734]
[1756628447881,26.0,204.9,204.83,8.76731583]
[1756628448114,29.88521849,204.9,204.85,3.88521849]
[1756628448276,0.66,204.89,204.86,42.30521849]
[1756628449187,0.66,204.89,204.86,56.97980849]
[1756628450068,0.66,204.88,204.86,14.67459]
[1756628450279,0.66,204.88,204.85,38.44]
[1756628450474,0.66,204.87,204.85,38.44]
[1756628450783,0.66,204.87,204.83,18.55980849]
[1756628451092,0.66,204.86,204.84,38.52]
[1756628451779,0.66,204.88,204.84,38.52]
[1756628452089,0.66,204.87,204.84,38.52]
[1756628452969,3.88521849,204.88,204.84,39.23]
[1756628453287,3.88521849,204.85,204.83,14.67459]
[1756628453591,4.54521849,204.84,204.79,29.52]
[1756628453793,0.66,204.84,204.8,0.71]
[1756628454089,3.88521849,204.86,204.81,0.71]
[1756628454294,4.54521849,204.86,204.81,0.71]
[1756628454792,0.66,204.85,204.81,0.71]
[1756628454971,26.0,204.87,204.79,34.40285955]
[1756628455176,30.54521849,204.87,204.82,0.71]
[1756628455490,0.66,204.86,204.82,0.71]
[1756628456581,0.66,204.86,204.82,5.59232139]
[1756628456985,4.54521849,204.86,204.82,5.59232139]
[1756628458104,4.54521849,204.86,204.82,0.71]
[1756628458394,3.88521849,204.83,204.79,38.48]
[1756628458592,4.54521849,204.85,204.8,4.59521849]
[1756628458900,4.54521849,204.85,204.8,3.88521849]
[1756628459085,4.54521849,204.85,204.81,0.71]
[1756628459695,0.66,204.85,204.81,0.71]
[1756628460079,0.66,204.85,204.81,5.59250583]
[1756628460283,0.66,204.85,204.82,0.71]
[1756628460591,0.66,204.84,204.81,42.46521849]
[1756628460789,0.66,204.84,204.81,38.58]
[1756628460981,0.66,204.84,204.81,43.46078]
[1756628461177,4.88091315,204.88,204.81,48.34332224]
[1756628461380,4.54521849,204.86,204.81,49.05332224]
[1756628461578,0.71,204.88,204.82,4.60521849]
[1756628461790,4.59521849,204.88,204.82,4.60521849]
[1756628461994,0.71,204.87,204.82,19.28196349]
[1756628462178,0.71,204.89,204.83,9.48731583]
[1756628462379,3.88521849,204.88,204.83,9.48731583]
[1756628462580,4.59521849,204.88,204.84,0.72]
[1756628463293,4.59521849,204.88,204.83,23.44405983]
[1756628463294,0.71,204.87,204.83,23.44405983]
[1756628463474,3.88521849,204.85,204.8,4.8828125]
[1756628463675,0.71,204.84,204.8,5.6028125]
[1756628463870,3.88521849,204.85,204.8,8.76803099]
[1756628464081,3.88521849,204.86,204.8,8.76803099]
[1756628464282,3.88521849,204.86,204.81,0.72]
[1756628464481,4.59521849,204.87,204.82,0.72]
[1756628464677,0.71,204.9,204.85,3.88521849]
[1756628464889,0.06,204.91,204.86,0.72]
[1756628465094,0.06,204.91,204.86,3.88521849]
[1756628465298,0.06,204.91,204.87,0.72]
[1756628466280,0.77,204.91,204.87,5.6009697]
[1756628466487,0.77,204.91,204.87,4.8809697]
[1756628468287,0.71,204.9,204.87,4.8809697]
[1756628469691,0.06,204.91,204.88,0.72]
[1756628470411,0.06,204.91,204.88,8.490437]
[1756628470622,0.06,204.91,204.88,7.770437]
[1756628470790,0.06,204.91,204.87,4.8809697]
[1756628471108,0.77,204.91,204.87,13.3714067]
[1756628471506,4.59521849,204.9,204.87,7.770437]
[1756628471810,4.59521849,204.9,204.85,42.50521849]
[1756628471811,4.59521849,204.89,204.85,14.675309]
[1756628472008,4.59521849,204.89,204.85,15.395309]
[1756628472500,4.59521849,204.89,204.85,20.27691036]
[1756628472700,4.59521849,204.89,204.82,47.36749525]
[1756628472701,3.88521849,204.87,204.82,47.36749525]
[1756628473005,0.06,204.91,204.82,60.96308925]
[1756628473310,3.88521849,204.89,204.84,3.88521849]
[1756628473500,4.59521849,204.89,204.84,0.72]
[1756628473896,0.06,204.91,204.86,3.88521849]
[1756628474217,18.5352602,204.94,204.88,13.59559401]
[1756628474218,0.06,204.94,204.88,13.59559401]
[1756628474512,0.06,204.94,204.93,3.88521849]
[1756628474712,0.06,204.94,204.93,50.90682536]
[1756628474914,0.06,204.94,204.93,4.60521849]
[1756628475228,0.06,204.94,204.93,5.59971502]
[1756628475420,0.06,204.94,204.93,12.6636405]
[1756628475717,0.71,205.05,204.93,28.74814655]
[1756628475919,3.88521849,205.02,204.97,3.88521849]
[1756628476092,4.59521849,205.02,204.97,4.60521849]
[1756628476286,3.88521849,205.01,204.93,17.07900258]
[1756628476493,4.59521849,205.01,204.95,18.55120049]
[1756628476692,4.59521849,205.01,204.9,134.20085481]
[1756628476693,3.88521849,204.99,204.9,148.0]
[1756628476901,26.0,205.01,204.91,3.89831182]
[1756628476902,3.88521849,204.96,204.91,3.89831182]
[1756628477097,4.59521849,204.96,204.91,5.6000085]
[1756628477402,3.88521849,204.94,204.89,39.16]
[1756628477607,0.71,204.94,204.89,57.71550349]
[1756628477805,3.88521849,204.95,204.9,4.60521849]
[1756628477998,4.59521849,204.95,204.9,4.60521849]
[1756628478226,0.71,204.95,204.9,9.48562824]
[1756628478605,4.59521849,204.95,204.9,9.48562824]
[1756628479607,4.59521849,204.95,204.9,5.60040975]
[1756628479813,4.59521849,204.95,204.9,9.48562824]
[1756628481403,0.71,204.95,204.9,9.48562824]
[1756628481604,4.59521849,204.95,204.9,9.48562824]
[1756628482125,4.59521849,204.95,204.91,3.18452179]
[1756628482309,4.59521849,204.95,204.9,9.48562824]
[1756628482510,4.59521849,204.95,204.91,3.1845214]
[1756628482824,4.59521849,204.95,204.9,5.60040975]
[1756628483127,4.59521849,204.95,204.91,3.1845214]
[1756628483296,4.59521849,204.95,204.9,4.60521849]
[1756628483297,3.88521849,204.94,204.9,0.72]
[1756628483493,3.88521849,204.92,204.86,59.33305372]
[1756628483698,4.59521849,204.92,204.87,3.18595461]
[1756628483896,4.59521849,204.91,204.88,3.18595461]
[1756628484102,4.59521849,204.91,204.86,44.66133372]
[1756628484301,4.59521849,204.91,204.87,3.18709437]
[1756628484500,4.59521849,204.91,204.86,44.66133372]
[1756628484501,4.59521849,204.91,204.88,3.18709437]
[1756628484702,4.59521849,204.91,204.86,44.66133372]
[1756628484703,4.59521849,204.9,204.86,44.66133372]
[1756628484914,4.59521849,204.9,204.87,3.18734722]
[1756628485120,4.59521849,204.9,204.88,3.18734722]
[1756628485303,4.59521849,204.9,204.86,44.66133372]
[1756628485509,4.59521849,204.9,204.87,3.18880855]
[1756628485832,4.59521849,204.9,204.88,3.18880855]
[1756628486019,4.59521849,204.9,204.86,44.66133372]
[1756628486218,0.71,204.9,204.87,3.18898519]
[1756628486424,0.71,204.9,204.88,3.18898519]
[1756628486626,0.71,204.9,204.86,44.66133372]
[1756628486825,0.71,204.9,204.87,3.19018501]
[1756628487025,3.88521849,204.91,204.88,3.19018501]
[1756628487226,4.59521849,204.91,204.86,44.66133372]
[1756628487423,4.59521849,204.91,204.87,3.19176122]
[1756628487727,4.59521849,204.9,204.88,3.19176122]
[1756628487920,4.59521849,204.9,204.86,39.06]
[1756628488136,4.59521849,204.9,204.87,3.19187383]
[1756628488321,4.59521849,204.9,204.88,3.19187383]
[1756628488508,4.59521849,204.9,204.86,39.06]
[1756628488829,4.59521849,204.9,204.87,3.19242816]
[1756628489029,4.59521849,204.9,204.88,3.19242816]
[1756628489233,4.59521849,204.9,204.85,8.76682181]
[1756628489533,4.59521849,204.9,204.86,3.19358015]
[1756628489741,4.59521849,204.9,204.87,3.19358015]
[1756628489906,0.71,204.92,204.86,4.60521849]
[1756628490110,4.59521849,204.92,204.87,3.1937042]
[1756628490332,4.59521849,204.92,204.88,3.1937042]
[1756628490632,4.59521849,204.92,204.87,0.72]
[1756628490842,4.59521849,204.91,204.88,3.19387598]
[1756628491010,4.59521849,204.91,204.87,0.72]
[1756628491210,4.59521849,204.91,204.88,3.19387748]
[1756628491529,4.59521849,204.91,204.87,5.60109285]
[1756628491734,4.59521849,204.91,204.88,3.19409879]
[1756628491934,4.59521849,204.91,204.87,5.60109285]
[1756628492716,4.59521849,204.91,204.87,0.72]
[1756628493536,0.71,204.91,204.87,0.72]
[1756628493737,4.59521849,204.91,204.87,0.72]
[1756628493935,4.08019264,204.97,204.89,3.88521849]
[1756628494120,3.88521849,204.96,204.91,3.88521849]
[1756628494321,4.58521849,204.95,204.91,0.7]
[1756628495920,4.58521849,204.94,204.89,8.76582239]
[1756628496345,4.58521849,204.94,204.9,0.7]
[1756628496533,0.7,204.94,204.9,0.7]
[1756628496742,4.58521849,204.94,204.9,0.7]
[1756628497551,4.58521849,204.94,204.9,5.58042396]
[1756628497728,4.58521849,204.94,204.9,0.7]
[1756628498047,4.58521849,204.94,204.89,3.88521849]
[1756628498347,4.58521849,204.94,204.89,9.46580439]
[1756628498654,4.58521849,204.94,204.9,0.7]
[1756628499161,0.7,205.0,204.93,3.88521849]
[1756628499456,30.58521849,205.0,204.95,3.88521849]
[1756628499747,4.58521849,204.99,204.95,0.7]
[1756628499921,0.7,204.99,204.95,0.7]
[1756628500128,4.58521849,204.99,204.95,0.7]
[1756628500323,26.0,205.0,204.96,0.7]
[1756628500822,26.7,205.0,204.96,0.7]
[1756628501948,30.58521849,205.0,204.96,0.7]
[1756628502149,30.58521849,205.0,204.96,5.57886855]
[1756628502330,30.58521849,205.0,204.96,4.87886855]
[1756628503465,30.58521849,205.0,204.95,4.87923883]
[1756628503657,26.7,205.0,204.95,9.46445732]
[1756628503841,30.58521849,205.0,204.95,9.46445732]
[1756628504049,26.7,205.0,204.96,3.88521849]
[1756628504431,0.7,204.99,204.95,9.46445732]
[1756628507364,0.7,204.99,204.95,5.57923883]
[1756628507558,0.7,204.99,204.95,9.46445732]
[1756628508358,26.0,205.0,204.96,0.7]
[1756628508759,26.0,205.0,204.95,8.76445732]
[1756628508760,26.0,205.0,204.97,4.58521849]
[1756628508939,26.0,205.0,204.98,0.7]
[1756628509861,29.88521849,205.0,204.96,0.7]
[1756628510055,30.58521849,205.0,204.96,0.7]
[1756628510649,3.88521849,204.99,204.94,3.88521849]
[1756628510851,0.7,204.98,204.94,3.88521849]
[1756628511054,0.7,204.98,204.94,4.58521849]
[1756628511260,0.7,204.98,204.94,4.61521849]
[1756628511457,0.7,204.98,204.94,9.49466703]
[1756628512553,4.58521849,204.98,204.94,5.60944854]
[1756628513167,0.7,204.97,204.94,0.03]
[1756628513370,4.58521849,204.97,204.94,0.03]
[1756628513743,0.7,204.97,204.94,0.03]
[1756628513972,3.88521849,204.98,204.94,0.73]
[1756628514339,4.58521849,204.98,204.94,0.73]
[1756628515466,0.7,204.98,204.94,5.60939256]
[1756628515963,0.7,204.98,204.95,0.7]
[1756628516170,3.88521849,204.99,204.95,0.7]
[1756628516357,4.58521849,204.99,204.95,0.7]
[1756628516983,0.7,204.99,204.95,5.57907763]
[1756628517265,3.88521849,204.99,204.96,0.7]
[1756628518056,26.0,205.0,204.97,0.7]
[1756628520055,26.0,205.0,204.98,4.87852473]
[1756628520258,26.7,205.0,204.98,4.87852473]
[1756628521679,26.7,205.0,204.97,4.87876274]
[1756628522149,30.58521849,205.0,204.97,4.87876274]
[1756628522560,26.7,205.0,204.97,4.87876274]
[1756628522759,30.58521849,205.0,204.97,4.87876274]
[1756628522958,0.67,204.99,204.97,4.87876274]
[1756628523373,29.88521849,205.0,204.97,4.87876274]
[1756628523569,30.55521849,205.0,204.97,4.87876274]
[1756628523873,0.67,204.99,204.96,5.53895733]
[1756628524072,26.0,205.0,204.96,5.53895733]
[1756628524277,30.55521849,205.0,204.96,5.53895733]
[1756628524959,4.55521849,205.0,204.96,5.53895733]
[1756628525163,0.67,205.08,204.99,3.88521849]
[1756628525357,0.67,205.08,205.0,3.87513925]
[1756628525358,4.55521849,205.08,205.0,3.87513925]
[1756628525562,26.0,205.07,205.02,3.88521849]
[1756628525865,4.55521849,205.06,205.01,3.88521849]
[1756628526058,0.67,205.05,205.02,3.21169757]
[1756628526274,4.55521849,205.07,205.02,4.54521849]
[1756628526783,30.55521849,205.07,205.03,4.87733502]
[1756628526958,30.55521849,205.07,205.03,5.53733502]
[1756628527378,4.87528275,205.12,205.03,8.76255351]
[1756628527567,3.88521849,205.09,205.04,4.54521849]
[1756628527760,30.55521849,205.09,205.04,4.54521849]
[1756628528074,4.55521849,205.08,205.04,0.66]
[1756628528273,26.0,205.09,205.04,0.66]
[1756628528274,26.0,205.09,205.05,0.66]
[1756628528574,30.55521849,205.09,205.05,4.87668564]
[1756628528762,0.67,205.08,205.05,4.87668564]
[1756628530169,29.88521849,205.09,205.05,5.53668564]
[1756628530367,30.55521849,205.09,205.05,5.53668564]
[1756628530693,3.88521849,205.09,205.06,0.66]
[1756628530857,0.06,205.07,205.05,4.87668564]
[1756628531177,0.73,205.07,205.05,4.87668564]
[1756628531777,0.06,205.07,205.04,4.87709715]
[1756628532078,0.06,205.07,205.04,5.53709715]
[1756628532864,0.06,205.07,205.04,8.76231564]
[1756628533084,0.06,205.07,205.05,0.66]
[1756628533679,0.06,205.07,205.06,4.87662147]
[1756628533863,3.88521849,205.09,205.06,4.87662147]
[1756628535883,26.0,205.1,205.06,4.87662147]
[1756628536075,3.88521849,205.09,205.07,0.66]
[1756628536269,3.88521849,205.09,205.06,4.87662147]
[1756628536459,3.88521849,205.09,205.06,5.53662147]
[1756628539487,3.88521849,205.09,205.06,4.87662147]
[1756628539672,3.88521849,205.07,205.01,4.87774722]
[1756628539982,3.88521849,205.06,205.01,14.29958771]
[1756628540190,3.88521849,205.06,205.02,0.66]
[1756628540571,4.55521849,205.07,205.03,0.66]
[1756628541578,4.55521849,205.07,205.01,14.29958771]
[1756628541781,4.55521849,205.07,205.02,0.66]
[1756628542183,4.55521849,205.07,205.03,0.66]
[1756628542368,13.59559401,205.08,205.04,0.66]
[1756628542568,3.88521849,205.07,205.04,0.66]
[1756628543269,14.26559401,205.08,205.04,0.66]
[1756628543474,18.1508125,205.08,205.04,0.66]
[1756628545088,17.4808125,205.08,205.03,4.87729563]
[1756628545275,4.55521849,205.07,205.02,8.76275497]
[1756628545476,4.55521849,205.07,205.01,8.762514]
[1756628545477,17.4808125,205.04,205.01,8.762514]
[1756628545693,13.59559401,205.01,204.95,3.17543453]
[1756628545863,17.4808125,205.04,204.94,0.69]
[1756628546064,39.59559401,205.02,204.94,0.69]
[1756628546269,39.59559401,205.02,204.94,5.56940561]
[1756628546483,39.59559401,205.02,204.95,0.66]
[1756628547169,44.47339372,205.02,204.95,0.66]
[1756628548492,44.47339372,205.02,204.95,5.53917713]
[1756628550890,44.47339372,205.02,204.95,0.66]
[1756628551585,44.47339372,205.02,204.94,0.03]
[1756628552396,13.59559401,205.07,204.95,3.70493877]
[1756628552598,13.59559401,205.03,204.95,14.665982]
[1756628552782,13.59559401,205.01,204.94,5.55947326]
[1756628553248,13.59559401,205.01,204.94,0.03]
[1756628553500,52.23559401,205.01,204.94,0.03]
[1756628554291,66.91162101,205.01,204.94,0.03]
[1756628554890,13.59559401,204.99,204.94,0.03]
[1756628555404,13.59559401,204.95,204.94,0.03]
[1756628555704,52.27559401,204.95,204.94,0.03]
[1756628555888,57.15483284,204.95,204.94,0.03]
[1756628562817,18.47483284,204.95,204.94,0.03]
[1756628563111,1.9569,204.98,204.94,0.03]
[1756628563112,1.9569,204.98,204.94,0.68]
[1756628563295,13.59559401,204.97,204.94,0.68]
[1756628563489,26.0,204.99,204.94,0.68]
[1756628563709,24.43962595,205.09,204.94,0.68]
[1756628563710,12.1911636,205.07,204.94,0.68]
[1756628563895,38.68,205.06,204.94,0.68]
[1756628564094,26.0,204.99,204.94,0.68]
[1756628564897,26.0,204.99,204.95,4.87923883]
[1756628565099,26.0,204.99,204.96,0.65]
[1756628567518,13.59559401,205.0,204.96,0.65]
[1756628568398,13.59559401,205.0,204.95,20.0]
[1756628568599,13.59559401,205.0,204.97,0.65]
[1756628568798,13.59559401,205.0,204.98,0.65]
[1756628569820,18.47373316,205.0,204.95,20.0]
[1756628570120,18.47373316,205.0,204.96,0.65]
[1756628570300,18.47373316,205.0,204.97,0.65]
[1756628570502,13.59559401,205.0,204.98,0.65]
[1756628570898,13.59559401,205.0,204.99,0.65]
[1756628571312,13.59559401,205.0,204.97,0.65]
[1756628571616,13.59559401,205.0,204.98,0.65]
[1756628571934,18.47366215,205.0,204.94,0.03]
[1756628572420,18.47366215,205.0,204.94,0.68]
[1756628580108,18.47366215,205.0,204.94,0.03]
[1756628580911,30.6687841,205.0,204.94,0.03]
[1756628582343,13.59559401,204.96,204.94,0.03]
[1756628583738,18.4746946,204.96,204.94,0.03]
[1756628585315,13.59559401,204.96,204.95,0.72]
[1756628585521,13.59559401,204.96,204.94,0.03]
[1756628585715,13.59559401,204.96,204.94,0.75]
[1756628588840,13.59559401,204.96,204.94,0.03]
[1756628589037,13.59559401,204.96,204.95,0.72]
[1756628589930,30.87894589,204.97,204.95,0.72]
[1756628589931,26.0,204.97,204.95,0.72]
[1756628590136,0.06,205.0,204.95,0.72]
[1756628590351,0.06,205.0,204.96,20.0]
[1756628590521,0.06,205.0,204.98,20.0]
[1756628590931,0.06,205.0,204.99,0.72]
[1756628592130,0.06,205.0,204.99,5.59828674]
[1756628595460,0.06,205.0,204.99,44.03828674]
[1756628599547,0.06,205.0,204.99,47.09037699]
[1756628599856,0.06,205.0,204.99,47.08980134]
[1756628600658,0.06,205.0,204.99,47.0887841]
[1756628601253,0.06,205.0,204.99,49.0439621]
[1756628603561,0.06,205.0,204.99,49.04194475]
[1756628604267,26.0,205.14,204.99,49.04194475]
[1756628604268,4.09940528,205.21,205.09,20.0]
[1756628604478,4.87329434,205.2,205.1,39.04]
[1756628604636,13.59559401,205.19,205.12,20.0]
[1756628604836,4.09940528,205.24,205.13,38.42]
[1756628604837,7.98228151,205.24,205.13,38.42]
[1756628605038,3.88287623,205.24,205.15,20.0]
[1756628605343,4.09940528,205.26,205.12,7.982282]
[1756628605344,4.87186982,205.26,205.12,7.982282]
[1756628605549,17.05154437,205.26,205.15,20.0]
[1756628605934,4.87281941,205.22,205.15,20.0]
[1756628606177,13.59559401,205.21,205.15,20.0]
[1756628606350,13.59559401,205.21,205.15,20.72]
[1756628606667,4.87261292,205.23,205.15,20.0]
[1756628606839,26.0,205.21,205.16,38.46]
[1756628607636,4.87329434,205.2,205.16,38.46]
[1756628608256,4.87329434,205.2,205.16,58.46]
[1756628608958,4.87329434,205.2,205.16,59.18]
[1756628609536,30.87309074,205.21,205.17,0.72]
[1756628609737,26.0,205.21,205.18,0.72]
[1756628610643,30.87317086,205.21,205.16,59.18]
[1756628610846,30.87317086,205.21,205.17,0.72]
[1756628611247,30.87317086,205.21,205.17,39.16]
[1756628611464,30.87317086,205.21,205.12,12.85744481]
[1756628611465,13.59559401,205.2,205.13,38.42]
[1756628611760,13.59559401,205.2,205.14,20.0]
[1756628611950,13.59559401,205.2,205.14,58.46]
[1756628612545,13.59559401,205.2,205.12,20.0]
[1756628612546,13.59559401,205.16,205.12,20.0]
[1756628612850,13.59559401,205.16,205.08,20.0]
[1756628613161,13.59559401,205.1,205.09,20.0]
[1756628613363,13.59559401,205.1,205.07,58.48]
[1756628613567,13.59559401,205.1,205.06,38.5]
[1756628613878,13.59559401,205.1,205.06,39.16]
[1756628614044,13.59559401,205.1,205.06,39.14]
[1756628614458,13.59559401,205.1,205.05,20.0]
[1756628614638,13.59559401,205.1,205.06,38.48]
[1756628614843,13.59559401,205.1,205.06,39.14]
[1756628615451,4.87590813,205.09,205.06,39.14]
[1756628615646,13.59559401,205.1,205.06,39.14]
[1756628616267,4.87543269,205.11,205.06,0.66]
[1756628616451,26.0,205.13,205.06,0.66]
[1756628616452,13.59559401,205.1,205.07,38.46]
[1756628616655,13.59559401,205.1,205.08,0.66]
[1756628616966,13.59559401,205.1,205.07,38.46]
[1756628617356,18.47134673,205.1,205.07,38.46]
[1756628617550,18.47134673,205.1,205.07,39.12]
[1756628617745,18.47134673,205.1,205.07,0.66]
[1756628617968,18.47134673,205.1,205.07,38.46]
[1756628618868,18.47134673,205.1,205.07,39.12]
[1756628619268,18.47134673,205.1,205.07,0.66]
[1756628619771,18.47134673,205.1,205.06,38.42]
[1756628619967,18.47134673,205.1,205.08,0.66]
[1756628628178,18.47134673,205.1,205.06,39.02]
[1756628628386,18.47134673,205.1,205.07,0.66]
[1756628628558,18.47134673,205.1,205.08,0.66]